[Event "*** Titled Tuesday Blitz"]
[Site "Chess.com"]
[Date "2021.03.09"]
[Round "8"]
[White "Bastiandash"]
[Black "03revilo"]
[Result "0-1"]
[WhiteElo "2456"]
[BlackElo "2340"]
[TimeControl "180+1"]
[EndTime "11:31:34 PST"]
[Termination "03revilo won by resignation"]

1. e4 {[%clk 0:03:00.9]} 1... c5 {[%clk 0:02:52.3]} 2. Nf3 {[%clk 0:03:00.5]}
2... d6 {[%clk 0:02:49.3]} 3. Bb5+ {[%clk 0:02:59.9]} 3... Nc6 {[%clk
0:02:48.5]} 4. c3 {[%clk 0:02:59.5]} 4... Bd7 {[%clk 0:02:47]} 5. d4 {[%clk
0:02:57.7]} 5... cxd4 {[%clk 0:02:25.4]} 6. cxd4 {[%clk 0:02:57.4]} 6... Nf6
{[%clk 0:02:25.1]} 7. Nc3 {[%clk 0:02:56.4]} 7... e6 {[%clk 0:02:13.8]} 8. O-O
{[%clk 0:02:55.9]} 8... Be7 {[%clk 0:02:12.8]} 9. Re1 {[%clk 0:02:30]} 9... O-O
{[%clk 0:02:10.1]} 10. Bg5 {[%clk 0:02:28.3]} 10... h6 {[%clk 0:01:59.7]} 11.
Bf4 {[%clk 0:02:25]} 11... Rc8 {[%clk 0:01:55]} 12. Qd2 {[%clk 0:02:13.4]} 12...
Na5 {[%clk 0:01:36.3]} 13. Bxd7 {[%clk 0:02:09]} 13... Qxd7 {[%clk 0:01:35.3]}
14. Qe2 {[%clk 0:02:09.7]} 14... Nc4 {[%clk 0:01:27.1]} 15. Rad1 {[%clk
0:01:59.7]} 15... b5 {[%clk 0:01:17.7]} 16. Bc1 {[%clk 0:01:35.3]} 16... b4
{[%clk 0:01:12.8]} 17. Nb1 {[%clk 0:01:33.6]} 17... Qb7 {[%clk 0:00:36.5]} 18.
Nbd2 {[%clk 0:01:08.3]} 18... d5 {[%clk 0:00:28.1]} 19. e5 {[%clk 0:01:05.4]}
19... Nd7 {[%clk 0:00:26.6]} 20. Nxc4 {[%clk 0:00:58.6]} 20... Rxc4 {[%clk
0:00:25.1]} 21. Be3 {[%clk 0:00:56.3]} 21... Rfc8 {[%clk 0:00:24.6]} 22. Rd2
{[%clk 0:00:54.8]} 22... b3 {[%clk 0:00:24.1]} 23. axb3 {[%clk 0:00:53.3]} 23...
Qxb3 {[%clk 0:00:24]} 24. Red1 {[%clk 0:00:53.4]} 24... Nb6 {[%clk 0:00:20.4]}
25. Rd3 {[%clk 0:00:52.2]} 25... Qb5 {[%clk 0:00:19.2]} 26. R3d2 {[%clk
0:00:47.7]} 26... Rb4 {[%clk 0:00:15.4]} 27. g4 {[%clk 0:00:43.8]} 27... Qxe2
{[%clk 0:00:13.9]} 28. Rxe2 {[%clk 0:00:44.7]} 28... Rb3 {[%clk 0:00:13.6]} 29.
Rdd2 {[%clk 0:00:40.3]} 29... Nc4 {[%clk 0:00:13.1]} 30. Rc2 {[%clk 0:00:40.6]}
30... Rcb8 {[%clk 0:00:13.1]} 31. Bc1 {[%clk 0:00:39.9]} 31... Rxf3 {[%clk
0:00:10.8]} 32. Kg2 {[%clk 0:00:37.5]} 32... Rfb3 {[%clk 0:00:11.2]} 33. f4
{[%clk 0:00:37.9]} 33... a5 {[%clk 0:00:10.1]} 34. f5 {[%clk 0:00:38.3]} 34...
exf5 {[%clk 0:00:10.1]} 35. gxf5 {[%clk 0:00:39.2]} 35... Bg5 {[%clk 0:00:10.7]}
36. Bxg5 {[%clk 0:00:39]} 36... hxg5 {[%clk 0:00:11.6]} 37. Kf2 {[%clk
0:00:38.5]} 37... Rxb2 {[%clk 0:00:11.9]} 38. e6 {[%clk 0:00:38.3]} 38... fxe6
{[%clk 0:00:11]} 39. fxe6 {[%clk 0:00:38.4]} 39... Rxc2 {[%clk 0:00:11.3]} 40.
Rxc2 {[%clk 0:00:38.8]} 40... Rb2 {[%clk 0:00:11.8]} 41. Rxb2 {[%clk 0:00:39]}
41... Nxb2 {[%clk 0:00:12.7]} 42. Ke2 {[%clk 0:00:39.9]} 42... Kf8 {[%clk
0:00:13]} 43. Kd2 {[%clk 0:00:40.5]} 43... Ke7 {[%clk 0:00:13]} 44. Kc2 {[%clk
0:00:41.4]} 44... Nc4 {[%clk 0:00:13.4]} 45. h4 {[%clk 0:00:42.3]} 45... Kxe6
{[%clk 0:00:13.8]} 46. hxg5 {[%clk 0:00:43.2]} 46... Kf5 {[%clk 0:00:14.4]} 47.
Kd3 {[%clk 0:00:43.8]} 47... Kxg5 {[%clk 0:00:15.3]} 0-1

[Event "*** Titled Tuesday Blitz"]
[Site "Chess.com"]
[Date "2021.03.09"]
[Round "8"]
[White "cukin84"]
[Black "Andrii_Prydun"]
[Result "0-1"]
[WhiteElo "2117"]
[BlackElo "2285"]
[TimeControl "180+1"]
[EndTime "11:31:34 PST"]
[Termination "Andrii_Prydun won by resignation"]

1. e4 {[%clk 0:03:00.9]} 1... d5 {[%clk 0:02:59.1]} 2. exd5 {[%clk 0:03:00.5]}
2... Qxd5 {[%clk 0:02:59.1]} 3. Nc3 {[%clk 0:03:00.7]} 3... Qd6 {[%clk 0:02:59]}
4. d4 {[%clk 0:03:00.3]} 4... Nf6 {[%clk 0:02:58.8]} 5. g3 {[%clk 0:03:00.1]}
5... c6 {[%clk 0:02:58.2]} 6. Bf4 {[%clk 0:02:59.2]} 6... Qb4 {[%clk 0:02:57.1]}
7. Ne2 {[%clk 0:02:55.3]} 7... Qxb2 {[%clk 0:02:55.5]} 8. Bg2 {[%clk 0:02:54.7]}
8... e6 {[%clk 0:02:47.7]} 9. O-O {[%clk 0:02:53.5]} 9... Nbd7 {[%clk
0:02:40.4]} 10. Rb1 {[%clk 0:02:40.7]} 10... Qa3 {[%clk 0:02:40.2]} 11. Rb3
{[%clk 0:02:35.2]} 11... Qa5 {[%clk 0:02:37.2]} 12. Qd3 {[%clk 0:02:14.7]} 12...
Be7 {[%clk 0:02:33.3]} 13. h4 {[%clk 0:02:11.8]} 13... O-O {[%clk 0:02:32.6]}
14. Rfb1 {[%clk 0:02:08.4]} 14... Nb6 {[%clk 0:02:19]} 15. Ne4 {[%clk
0:01:57.9]} 15... Nbd5 {[%clk 0:02:15.4]} 16. Be5 {[%clk 0:01:44.1]} 16... Qd8
{[%clk 0:01:52]} 17. c4 {[%clk 0:01:38.4]} 17... Nb6 {[%clk 0:01:50.8]} 18. Ng5
{[%clk 0:01:32.5]} 18... Nbd7 {[%clk 0:01:46.9]} 19. Bxf6 {[%clk 0:01:26.1]}
19... Nxf6 {[%clk 0:01:46.2]} 20. Nf4 {[%clk 0:01:14]} 20... h6 {[%clk
0:01:30.8]} 21. Ne4 {[%clk 0:01:05.2]} 21... Nxe4 {[%clk 0:01:26.8]} 22. Bxe4
{[%clk 0:01:04.4]} 22... Bf6 {[%clk 0:01:26.3]} 23. d5 {[%clk 0:00:59.9]} 23...
cxd5 {[%clk 0:01:04.9]} 24. cxd5 {[%clk 0:01:00.8]} 24... Be5 {[%clk 0:00:47.6]}
25. Ng2 {[%clk 0:00:46.8]} 25... Qd6 {[%clk 0:00:33.6]} 26. Ne3 {[%clk
0:00:43.5]} 26... exd5 {[%clk 0:00:28.5]} 27. Nxd5 {[%clk 0:00:40.9]} 27... Be6
{[%clk 0:00:27.6]} 28. Rxb7 {[%clk 0:00:31.2]} 28... Rad8 {[%clk 0:00:26.9]} 29.
Ne7+ {[%clk 0:00:23.7]} 29... Kh8 {[%clk 0:00:27]} 30. Qf3 {[%clk 0:00:20.1]}
30... Qa6 {[%clk 0:00:18.9]} 31. Kg2 {[%clk 0:00:17.3]} 31... Qxa2 {[%clk
0:00:17]} 32. R7b2 {[%clk 0:00:16.6]} 32... Qa4 {[%clk 0:00:15.4]} 33. Rb4
{[%clk 0:00:16]} 33... Qd7 {[%clk 0:00:09]} 34. Bc6 {[%clk 0:00:15.9]} 34...
Qxe7 {[%clk 0:00:08.2]} 35. Be4 {[%clk 0:00:16.8]} 35... Bd6 {[%clk 0:00:07.4]}
36. Bc2 {[%clk 0:00:17.6]} 36... Bxb4 {[%clk 0:00:07]} 37. Qe4 {[%clk
0:00:17.4]} 37... Bd5 {[%clk 0:00:07]} 38. Qxd5 {[%clk 0:00:16.4]} 38... Rxd5
{[%clk 0:00:06.9]} 0-1

[Event "*** Titled Tuesday Blitz"]
[Site "Chess.com"]
[Date "2021.03.09"]
[Round "8"]
[White "Duhless"]
[Black "Kobalia"]
[Result "1-0"]
[WhiteElo "3017"]
[BlackElo "2737"]
[TimeControl "180+1"]
[EndTime "11:31:36 PST"]
[Termination "Duhless won on time"]

1. a3 {[%clk 0:03:00.9]} 1... e5 {[%clk 0:02:58.6]} 2. b4 {[%clk 0:03:00.1]}
2... d5 {[%clk 0:02:58.3]} 3. Bb2 {[%clk 0:03:00]} 3... Bd6 {[%clk 0:02:58.2]}
4. e3 {[%clk 0:03:00.6]} 4... Nf6 {[%clk 0:02:56.5]} 5. c4 {[%clk 0:03:00.8]}
5... c6 {[%clk 0:02:55.6]} 6. Nf3 {[%clk 0:03:00.8]} 6... Qe7 {[%clk 0:02:55.2]}
7. Be2 {[%clk 0:03:00.1]} 7... O-O {[%clk 0:02:54.7]} 8. O-O {[%clk 0:02:59.6]}
8... Bg4 {[%clk 0:02:54]} 9. Nc3 {[%clk 0:02:54.5]} 9... Nbd7 {[%clk 0:02:47.5]}
10. cxd5 {[%clk 0:02:49.7]} 10... cxd5 {[%clk 0:02:42.8]} 11. h3 {[%clk
0:02:49.8]} 11... Bh5 {[%clk 0:02:40.5]} 12. Nh4 {[%clk 0:02:48.8]} 12... Bxe2
{[%clk 0:02:36.2]} 13. Nxe2 {[%clk 0:02:48.4]} 13... Qe6 {[%clk 0:02:35.5]} 14.
f4 {[%clk 0:02:46.6]} 14... Rfe8 {[%clk 0:02:09]} 15. Nf5 {[%clk 0:02:39.6]}
15... Bc7 {[%clk 0:01:42.9]} 16. Rc1 {[%clk 0:02:30.7]} 16... Rac8 {[%clk
0:01:41.8]} 17. fxe5 {[%clk 0:02:24.8]} 17... Bxe5 {[%clk 0:01:35.2]} 18. Ned4
{[%clk 0:02:23.8]} 18... Rxc1 {[%clk 0:01:27.4]} 19. Qxc1 {[%clk 0:02:23]} 19...
Qb6 {[%clk 0:01:27.4]} 20. Qd1 {[%clk 0:02:15.1]} 20... g6 {[%clk 0:01:18.5]}
21. Nh6+ {[%clk 0:02:06.2]} 21... Kg7 {[%clk 0:01:17.8]} 22. Ng4 {[%clk
0:02:06.2]} 22... Nxg4 {[%clk 0:01:15]} 23. Qxg4 {[%clk 0:02:07.1]} 23... Nf6
{[%clk 0:01:13.7]} 24. Qg5 {[%clk 0:01:47.4]} 24... Kg8 {[%clk 0:01:04.4]} 25.
d3 {[%clk 0:01:32.1]} 25... a5 {[%clk 0:01:02.4]} 26. b5 {[%clk 0:01:30.5]}
26... a4 {[%clk 0:01:01.7]} 27. Rf2 {[%clk 0:01:28.9]} 27... Qa5 {[%clk
0:00:50.7]} 28. Rxf6 {[%clk 0:01:17.9]} 28... h6 {[%clk 0:00:30.7]} 29. Qh4
{[%clk 0:00:16.9]} 29... Qd8 {[%clk 0:00:10.2]} 30. Ne6 {[%clk 0:00:03.8]} 30...
Bxf6 {[%clk 0:00:02.7]} 31. Bxf6 {[%clk 0:00:02.8]} 1-0

[Event "*** Titled Tuesday Blitz"]
[Site "Chess.com"]
[Date "2021.03.09"]
[Round "8"]
[White "schondeln"]
[Black "Ajedrez_con_German"]
[Result "0-1"]
[WhiteElo "2404"]
[BlackElo "2544"]
[TimeControl "180+1"]
[EndTime "11:31:40 PST"]
[Termination "Ajedrez_con_German won by resignation"]

1. e4 {[%clk 0:03:00.9]} 1... e5 {[%clk 0:02:58.9]} 2. Bc4 {[%clk 0:02:59.6]}
2... Nf6 {[%clk 0:02:57.6]} 3. d3 {[%clk 0:02:59.8]} 3... c6 {[%clk 0:02:57.7]}
4. Nf3 {[%clk 0:02:59.9]} 4... d5 {[%clk 0:02:57.6]} 5. Bb3 {[%clk 0:03:00.2]}
5... Bd6 {[%clk 0:02:54.8]} 6. Nc3 {[%clk 0:02:59.3]} 6... O-O {[%clk
0:02:47.5]} 7. O-O {[%clk 0:02:56.2]} 7... Be6 {[%clk 0:02:34.8]} 8. Bg5 {[%clk
0:02:51.9]} 8... d4 {[%clk 0:02:31.4]} 9. Ne2 {[%clk 0:02:50.5]} 9... Nbd7
{[%clk 0:02:26.3]} 10. Ng3 {[%clk 0:02:32.1]} 10... h6 {[%clk 0:02:23.5]} 11.
Bxf6 {[%clk 0:02:22.7]} 11... Qxf6 {[%clk 0:02:17.5]} 12. Nd2 {[%clk 0:02:14]}
12... Nc5 {[%clk 0:02:13.4]} 13. Ne2 {[%clk 0:01:47.8]} 13... a5 {[%clk
0:02:04.8]} 14. Bxe6 {[%clk 0:01:38.6]} 14... Nxe6 {[%clk 0:01:56.8]} 15. c3
{[%clk 0:01:37.7]} 15... dxc3 {[%clk 0:01:54.2]} 16. bxc3 {[%clk 0:01:37.3]}
16... Rfd8 {[%clk 0:01:47.2]} 17. Qc2 {[%clk 0:01:34.2]} 17... Bc5 {[%clk
0:01:43.8]} 18. Rad1 {[%clk 0:01:30.7]} 18... Rd7 {[%clk 0:01:43.4]} 19. Nf3
{[%clk 0:01:28.1]} 19... Rad8 {[%clk 0:01:37.5]} 20. h3 {[%clk 0:01:20.8]} 20...
b5 {[%clk 0:01:32.9]} 21. Rd2 {[%clk 0:01:14]} 21... Bb6 {[%clk 0:01:20.9]} 22.
a3 {[%clk 0:01:11.7]} 22... g6 {[%clk 0:01:19.9]} 23. Nh2 {[%clk 0:00:39.9]}
23... h5 {[%clk 0:01:19.3]} 24. Nf3 {[%clk 0:00:39.9]} 24... Ng5 {[%clk
0:01:02.6]} 25. Nxg5 {[%clk 0:00:39.4]} 25... Qxg5 {[%clk 0:01:03.5]} 26. a4
{[%clk 0:00:36.3]} 26... b4 {[%clk 0:00:57.3]} 27. cxb4 {[%clk 0:00:36.2]} 27...
axb4 {[%clk 0:00:57.8]} 28. Rfd1 {[%clk 0:00:31.5]} 28... Qf6 {[%clk 0:00:50.9]}
29. Nc1 {[%clk 0:00:30.5]} 29... Bd4 {[%clk 0:00:45.3]} 30. Nb3 {[%clk
0:00:30.3]} 30... c5 {[%clk 0:00:37.2]} 31. Nxd4 {[%clk 0:00:30.2]} 31... cxd4
{[%clk 0:00:35.5]} 32. Qb3 {[%clk 0:00:30.5]} 32... Rb8 {[%clk 0:00:20.1]} 33.
Rc1 {[%clk 0:00:30.3]} 33... Ra7 {[%clk 0:00:19.7]} 34. Rc4 {[%clk 0:00:30]}
34... Qa6 {[%clk 0:00:19.3]} 35. Rxb4 {[%clk 0:00:29.5]} 35... Rxb4 {[%clk
0:00:19.1]} 36. Qxb4 {[%clk 0:00:29.8]} 36... Qxa4 {[%clk 0:00:17]} 37. Qb8+
{[%clk 0:00:29.3]} 37... Kh7 {[%clk 0:00:17.2]} 38. Qxe5 {[%clk 0:00:29.4]}
38... Qa1+ {[%clk 0:00:13.8]} 39. Kh2 {[%clk 0:00:28.9]} 39... Qc1 {[%clk
0:00:12.8]} 40. Qxd4 {[%clk 0:00:21.7]} 40... Ra1 {[%clk 0:00:11.9]} 41. Rb2
{[%clk 0:00:19.7]} 41... Qf4+ {[%clk 0:00:09.7]} 42. g3 {[%clk 0:00:17.4]} 42...
Qf3 {[%clk 0:00:10.1]} 0-1

[Event "*** Titled Tuesday Blitz"]
[Site "Chess.com"]
[Date "2021.03.09"]
[Round "8"]
[White "ChronicUnhappiness"]
[Black "FredyMatsuura"]
[Result "0-1"]
[WhiteElo "2334"]
[BlackElo "2220"]
[TimeControl "180+1"]
[EndTime "11:31:46 PST"]
[Termination "FredyMatsuura won on time"]

1. d4 {[%clk 0:03:00.9]} 1... d5 {[%clk 0:02:59]} 2. c4 {[%clk 0:03:01.2]} 2...
e6 {[%clk 0:02:59]} 3. Nc3 {[%clk 0:03:00.4]} 3... c6 {[%clk 0:02:59]} 4. cxd5
{[%clk 0:02:56.2]} 4... exd5 {[%clk 0:02:58.6]} 5. Bf4 {[%clk 0:02:55.5]} 5...
Bf5 {[%clk 0:02:52.4]} 6. e3 {[%clk 0:02:53.3]} 6... Nf6 {[%clk 0:02:49.5]} 7.
Bd3 {[%clk 0:02:51]} 7... Bxd3 {[%clk 0:02:48.9]} 8. Qxd3 {[%clk 0:02:51.9]}
8... Bd6 {[%clk 0:02:48.6]} 9. Nge2 {[%clk 0:02:51.9]} 9... O-O {[%clk 0:02:48]}
10. O-O {[%clk 0:02:18.6]} 10... Re8 {[%clk 0:02:35.5]} 11. Rfe1 {[%clk
0:02:09.2]} 11... Bxf4 {[%clk 0:02:28.6]} 12. Nxf4 {[%clk 0:02:08.7]} 12... Nbd7
{[%clk 0:02:28.5]} 13. b4 {[%clk 0:01:56.6]} 13... a6 {[%clk 0:02:21]} 14. a4
{[%clk 0:01:56]} 14... Ne4 {[%clk 0:02:10.3]} 15. Nxe4 {[%clk 0:01:54.2]} 15...
Rxe4 {[%clk 0:02:07]} 16. b5 {[%clk 0:01:50]} 16... axb5 {[%clk 0:02:06.8]} 17.
axb5 {[%clk 0:01:49.6]} 17... Re8 {[%clk 0:02:04.2]} 18. bxc6 {[%clk 0:01:36.2]}
18... bxc6 {[%clk 0:02:04]} 19. Qc3 {[%clk 0:01:36.5]} 19... Qb6 {[%clk
0:01:58.7]} 20. Rab1 {[%clk 0:01:21.9]} 20... Qa6 {[%clk 0:01:55.6]} 21. Rec1
{[%clk 0:01:20.1]} 21... Rec8 {[%clk 0:01:50.8]} 22. h3 {[%clk 0:01:10.3]} 22...
h6 {[%clk 0:01:46.9]} 23. Qb4 {[%clk 0:00:58.2]} 23... Rab8 {[%clk 0:01:35]} 24.
Qd6 {[%clk 0:00:57.2]} 24... Rxb1 {[%clk 0:01:28.2]} 25. Rxb1 {[%clk 0:00:58.1]}
25... Nf6 {[%clk 0:01:25.5]} 26. Rc1 {[%clk 0:00:31]} 26... Qb7 {[%clk
0:01:12.1]} 27. Nd3 {[%clk 0:00:29.4]} 27... Ne4 {[%clk 0:01:08.3]} 28. Qa3
{[%clk 0:00:21.7]} 28... Ra8 {[%clk 0:01:00.7]} 29. Nc5 {[%clk 0:00:12]} 29...
Nxc5 {[%clk 0:00:53.2]} 30. Qxc5 {[%clk 0:00:11.6]} 30... Ra6 {[%clk 0:00:50.6]}
31. g3 {[%clk 0:00:11.5]} 31... g6 {[%clk 0:00:50.1]} 32. Kg2 {[%clk 0:00:11.7]}
32... h5 {[%clk 0:00:50.3]} 33. h4 {[%clk 0:00:11.9]} 33... Qd7 {[%clk
0:00:46.3]} 34. Rc2 {[%clk 0:00:09.8]} 34... Qe6 {[%clk 0:00:46]} 35. Qc3 {[%clk
0:00:07.1]} 35... Kg7 {[%clk 0:00:43.7]} 36. Kh2 {[%clk 0:00:06.7]} 36... Qf6
{[%clk 0:00:42.8]} 37. Qd2 {[%clk 0:00:05.2]} 37... Qf5 {[%clk 0:00:40.8]} 38.
Qe2 {[%clk 0:00:04.9]} 38... Qe4 {[%clk 0:00:38.9]} 39. Rc1 {[%clk 0:00:03.3]}
39... Rb6 {[%clk 0:00:34.1]} 40. Qc2 {[%clk 0:00:02.9]} 40... Qf3 {[%clk
0:00:31.4]} 41. Kg1 {[%clk 0:00:03.1]} 41... Qf6 {[%clk 0:00:25.8]} 42. Rb1
{[%clk 0:00:01.7]} 42... Rxb1+ {[%clk 0:00:22.1]} 43. Qxb1 {[%clk 0:00:01.6]}
43... Qf3 {[%clk 0:00:22.4]} 44. Qc2 {[%clk 0:00:01.6]} 44... Qg4 {[%clk
0:00:21.7]} 0-1

[Event "*** Titled Tuesday Blitz"]
[Site "Chess.com"]
[Date "2021.03.09"]
[Round "8"]
[White "BrandonJacobson"]
[Black "bakki78"]
[Result "0-1"]
[WhiteElo "2915"]
[BlackElo "2793"]
[TimeControl "180+1"]
[EndTime "11:31:48 PST"]
[Termination "bakki78 won by resignation"]

1. e4 {[%clk 0:03:00.9]} 1... c5 {[%clk 0:02:59.3]} 2. Nf3 {[%clk 0:03:01.2]}
2... Nc6 {[%clk 0:02:58.9]} 3. Bb5 {[%clk 0:03:01]} 3... Nf6 {[%clk 0:02:58.1]}
4. Bxc6 {[%clk 0:02:54.6]} 4... dxc6 {[%clk 0:02:57.7]} 5. d3 {[%clk 0:02:54]}
5... Qc7 {[%clk 0:02:54.6]} 6. h3 {[%clk 0:02:49.9]} 6... e5 {[%clk 0:02:54.2]}
7. a4 {[%clk 0:02:49.7]} 7... Bd6 {[%clk 0:02:51]} 8. a5 {[%clk 0:02:49.5]} 8...
O-O {[%clk 0:02:48.7]} 9. O-O {[%clk 0:02:49.3]} 9... Be6 {[%clk 0:02:48.6]} 10.
Nbd2 {[%clk 0:02:44.7]} 10... h6 {[%clk 0:02:43.6]} 11. b3 {[%clk 0:02:43.5]}
11... b5 {[%clk 0:02:35.6]} 12. axb6 {[%clk 0:02:29.8]} 12... axb6 {[%clk
0:02:31]} 13. Bb2 {[%clk 0:02:30.7]} 13... b5 {[%clk 0:02:20.7]} 14. Nh4 {[%clk
0:02:21.9]} 14... Rfe8 {[%clk 0:02:03.7]} 15. Qf3 {[%clk 0:02:11]} 15... Nd7
{[%clk 0:01:52.1]} 16. Nf5 {[%clk 0:02:10.7]} 16... Nf8 {[%clk 0:01:51.4]} 17.
Nxd6 {[%clk 0:01:52.8]} 17... Qxd6 {[%clk 0:01:49.9]} 18. Qg3 {[%clk 0:01:53.4]}
18... Ng6 {[%clk 0:01:47]} 19. h4 {[%clk 0:01:45.2]} 19... Nf4 {[%clk
0:01:41.6]} 20. Kh2 {[%clk 0:01:40.8]} 20... f6 {[%clk 0:01:12.8]} 21. Qe3
{[%clk 0:01:39.6]} 21... c4 {[%clk 0:01:02.9]} 22. g3 {[%clk 0:01:07.8]} 22...
Ng6 {[%clk 0:00:58.8]} 23. dxc4 {[%clk 0:01:03]} 23... bxc4 {[%clk 0:00:58.9]}
24. Nxc4 {[%clk 0:01:03.7]} 24... Bxc4 {[%clk 0:00:57]} 25. bxc4 {[%clk
0:01:04.6]} 25... Nf8 {[%clk 0:00:54.4]} 26. Ba3 {[%clk 0:00:56.2]} 26... Qe6
{[%clk 0:00:51.2]} 27. Bxf8 {[%clk 0:00:55.8]} 27... Rxf8 {[%clk 0:00:50.8]} 28.
Qc5 {[%clk 0:00:55.3]} 28... Rfd8 {[%clk 0:00:34.9]} 29. Rxa8 {[%clk 0:00:50.7]}
29... Rxa8 {[%clk 0:00:34.7]} 30. Rb1 {[%clk 0:00:51.2]} 30... Kh7 {[%clk
0:00:29.1]} 31. Rb7 {[%clk 0:00:40]} 31... Rd8 {[%clk 0:00:27.7]} 32. Kg2 {[%clk
0:00:22.1]} 32... Rd7 {[%clk 0:00:19.8]} 33. Rb6 {[%clk 0:00:17.9]} 33... Qg4
{[%clk 0:00:18.4]} 34. Qxc6 {[%clk 0:00:17.4]} 34... Rd2 {[%clk 0:00:18.2]} 35.
Rb7 {[%clk 0:00:10.4]} 35... Qe2 {[%clk 0:00:17.3]} 36. Qb6 {[%clk 0:00:10.8]}
36... Qxe4+ {[%clk 0:00:17.1]} 37. Kh3 {[%clk 0:00:09.9]} 37... Rd1 {[%clk
0:00:16.5]} 38. Rxg7+ {[%clk 0:00:03.6]} 38... Kxg7 {[%clk 0:00:15.7]} 39. Qc7+
{[%clk 0:00:04.1]} 39... Kf8 {[%clk 0:00:15.2]} 40. Qc8+ {[%clk 0:00:04]} 40...
Ke7 {[%clk 0:00:14.8]} 41. Qc5+ {[%clk 0:00:04]} 41... Rd6 {[%clk 0:00:14.8]}
42. Qc7+ {[%clk 0:00:04]} 42... Rd7 {[%clk 0:00:14.2]} 43. Qc5+ {[%clk
0:00:04.4]} 43... Kf7 {[%clk 0:00:14.4]} 44. Kh2 {[%clk 0:00:03.2]} 44... Qd4
{[%clk 0:00:14.7]} 0-1

[Event "*** Titled Tuesday Blitz"]
[Site "Chess.com"]
[Date "2021.03.09"]
[Round "8"]
[White "KarateBaby"]
[Black "ShcufNaiRolf"]
[Result "0-1"]
[WhiteElo "2211"]
[BlackElo "2363"]
[TimeControl "180+1"]
[EndTime "11:31:49 PST"]
[Termination "ShcufNaiRolf won by checkmate"]

1. Nf3 {[%clk 0:03:00.9]} 1... d5 {[%clk 0:02:55.4]} 2. c4 {[%clk 0:02:50.9]}
2... c6 {[%clk 0:02:51.8]} 3. e3 {[%clk 0:02:19.8]} 3... Nf6 {[%clk 0:02:48.3]}
4. Nc3 {[%clk 0:02:19.1]} 4... e6 {[%clk 0:02:46.8]} 5. Qc2 {[%clk 0:02:06.8]}
5... Bd6 {[%clk 0:02:42.7]} 6. d4 {[%clk 0:02:03.7]} 6... O-O {[%clk 0:02:39.5]}
7. Bd2 {[%clk 0:01:45.2]} 7... Nbd7 {[%clk 0:02:30.5]} 8. O-O-O {[%clk
0:01:45.1]} 8... b5 {[%clk 0:02:23.3]} 9. e4 {[%clk 0:01:25.1]} 9... b4 {[%clk
0:02:14.6]} 10. e5 {[%clk 0:01:14.8]} 10... bxc3 {[%clk 0:02:13]} 11. Bxc3
{[%clk 0:01:07]} 11... Be7 {[%clk 0:01:53.8]} 12. exf6 {[%clk 0:00:55.6]} 12...
Bxf6 {[%clk 0:01:50]} 13. Bd3 {[%clk 0:00:49.2]} 13... h6 {[%clk 0:01:35.6]} 14.
c5 {[%clk 0:00:48.9]} 14... a5 {[%clk 0:01:30]} 15. Rde1 {[%clk 0:00:41]} 15...
Ba6 {[%clk 0:01:29]} 16. Bh7+ {[%clk 0:00:33.5]} 16... Kh8 {[%clk 0:01:28.3]}
17. g4 {[%clk 0:00:34.4]} 17... g6 {[%clk 0:01:14.1]} 18. Bxg6 {[%clk
0:00:30.8]} 18... fxg6 {[%clk 0:01:14.2]} 19. Qxg6 {[%clk 0:00:31.7]} 19... Bg7
{[%clk 0:01:01.6]} 20. Rxe6 {[%clk 0:00:27.3]} 20... Rxf3 {[%clk 0:00:56.8]} 21.
Rxc6 {[%clk 0:00:25.1]} 21... Qg5+ {[%clk 0:00:28.2]} 22. Qxg5 {[%clk 0:00:19]}
22... hxg5 {[%clk 0:00:29.1]} 23. h4 {[%clk 0:00:19.3]} 23... Bd3 {[%clk
0:00:16.8]} 24. hxg5+ {[%clk 0:00:15]} 24... Kg8 {[%clk 0:00:17.3]} 25. g6
{[%clk 0:00:13.9]} 25... Raf8 {[%clk 0:00:16.3]} 26. Rd1 {[%clk 0:00:12.1]}
26... Be4 {[%clk 0:00:15.9]} 27. Bxa5 {[%clk 0:00:11.1]} 27... Rxf2 {[%clk
0:00:15.6]} 28. Bd2 {[%clk 0:00:11.3]} 28... Re2 {[%clk 0:00:15.4]} 29. b4
{[%clk 0:00:10.9]} 29... Nf6 {[%clk 0:00:15.5]} 30. b5 {[%clk 0:00:11.1]} 30...
Nxg4 {[%clk 0:00:15.9]} 31. b6 {[%clk 0:00:11.4]} 31... Nf2 {[%clk 0:00:16.4]}
32. Rg1 {[%clk 0:00:09.6]} 32... Nd3+ {[%clk 0:00:16.7]} 33. Kc2 {[%clk
0:00:09.3]} 33... Nb4+ {[%clk 0:00:14.8]} 34. Kd1 {[%clk 0:00:09.7]} 34... Rxd2+
{[%clk 0:00:15.2]} 35. Kxd2 {[%clk 0:00:09.9]} 35... Nxc6 {[%clk 0:00:16.1]} 36.
a4 {[%clk 0:00:08.4]} 36... Bxd4 {[%clk 0:00:16.3]} 37. Rh1 {[%clk 0:00:07]}
37... Bxc5 {[%clk 0:00:15.2]} 38. b7 {[%clk 0:00:06.5]} 38... d4 {[%clk
0:00:12.3]} 39. Rh7 {[%clk 0:00:06.4]} 39... Bb4+ {[%clk 0:00:12.4]} 40. Kd1
{[%clk 0:00:06]} 40... Ne5 {[%clk 0:00:12.1]} 41. Rc7 {[%clk 0:00:06.5]} 41...
Bd3 {[%clk 0:00:11]} 42. Rc8 {[%clk 0:00:06.6]} 42... Bd6 {[%clk 0:00:10.8]} 43.
a5 {[%clk 0:00:05.8]} 43... Kg7 {[%clk 0:00:09.9]} 44. Ra8 {[%clk 0:00:05.5]}
44... Rf1+ {[%clk 0:00:09.4]} 45. Kd2 {[%clk 0:00:05.3]} 45... Bb4# {[%clk
0:00:09.3]} 0-1